Cogmind - Beta 17.1 @@@ ROGUE MODE // 2026.09.02 @ 13:58:21 Player: SunShine214 Result: Destroyed by Y-72 Warden with Railgun Performance ------------- Evolutions (6) 3000 Regions Visited (12) 2400 Robots Destroyed (310) 1550 Value Destroyed (10228) 10228 Prototype IDs (36) 720 Alien Tech Used (2) 400 Bonus (1678) 1678 TOTAL SCORE: 19976 Bonus ------- High Alert Combat Kills 654 Follower Combat Kills 464 Met Zhirov 300 MAIN.C Attacked Proxy Base 500 Friendly Fire -240 Cogmind --------- Core Integrity 0/1150 Matter 259/300 Energy 98/100 System Corruption 21% Temperature Cool (0) Movement Core (50) Location -4/Factory Parts ------- > --- POWER (2) -------- (None) > --- PROPULSION (5) --- (None) > --- UTILITY (8) ------ Advanced Visual Processing Unit Advanced Signal Interpreter Hacking Suite Advanced System Shield > --- WEAPON (4) ------- (None) > --- INVENTORY (5) ---- Improved Phase Shifter Advanced Force Field Hacking Suite Micro-nuke Launcher Plasma Cutter Peak State ------------ > --- POWER ------------ Antimatter-Fission Reactor > --- PROPULSION ------- Myomer Exoskeleton > --- UTILITY ---------- Armored Scrap Engine Improved Coolant Injector High-capacity Storage Unit Advanced Visual Processing Unit Hacking Suite > --- WEAPON ----------- Kinetic HMG Construct/G Ballistic Battle Construct/G Thermal Neutralizer Construct/C Phasing Sabre > --- INVENTORY -------- Neutrino Core Improved Medium Treads Spiked Medium Treads Improved Cooling System Improved Energy Well 0b10 Decoder Chip [Scout] Improved Armor Integrity Analyzer Precision Matter Filter Advanced Reaction Control System Experimental Power Shielding Makeshift Light Armor Plating Makeshift Light Armor Plating Advanced Force Field Advanced Force Field Hacking Suite Advanced System Shield Transdimensional Reconstructor Plasma Cutter CPS Tube Phasing Sabre [Rating: 109] Favorites ----------- Power Heavy Ion Engine Engine Heavy Ion Engine Power Core Nuclear Core Reactor Constructs Propulsion Light Treads Treads Light Treads Leg Constructs Flight Unit Improved VTOL Module Utility Hacking Suite Device Armored Scrap Engine Storage High-capacity Storage Unit Processor Advanced Visual Processing Unit Hackware Hacking Suite Protection Hardened Medium Armor Plating Weapon Gauss Cannon Energy Gun Spread Laser Energy Cannon Constructs Ballistic Gun Constructs Ballistic Cannon Gauss Cannon Launcher Rocket Launcher Special Weapon Mining Laser Impact Weapon Heavy Hammer Slashing Weapon Phasing Sabre Build | -11 -10 -9 -8 -7 -7 -7 -5 -5 -5 -5 -4 -4 ------- Run | Yrd Mat Mat Mat Fac Sto Rec Fac Upp Upp Zhi Pro Fac Slots Evolved 12 | . . 2 2 2 . . 4 . . . . 2 Power 1 | . . . . . . . 1 . . . . . Propulsion 3 | . . . 1 1 . . . . . . . 1 Utility 6 | . . 2 1 1 . . 1 . . . . 1 Weapon 2 | . . . . . . . 2 . . . . . Parts Attached 137 | 7 10 18 37 9 23 3 7 1 4 2 7 9 Power 10 | 1 . 3 2 2 1 . . . . . . 1 Engine 6 | 1 . 2 1 1 1 . . . . . . . Core 4 | . . 1 1 1 . . . . . . . 1 Reactor . | . . . . . . . . . . . . . Propulsion 32 | 2 2 3 14 2 9 . . . . . . . Treads 30 | 2 2 2 14 2 8 . . . . . . . Leg . | . . . . . . . . . . . . . Wheel . | . . . . . . . . . . . . . Hover . | . . . . . . . . . . . . . Flight 2 | . . 1 . . 1 . . . . . . . Utility 48 | 2 1 6 9 4 4 3 4 1 1 2 6 5 Device 19 | 1 . 3 2 1 1 2 2 . 1 1 4 1 Storage 7 | 1 1 1 2 . 1 . 1 . . . . . Processor 5 | . . 1 2 . . . . . . . 1 1 Hackware 6 | . . 1 . 1 . 1 1 . . . . 2 Protection 11 | . . . 3 2 2 . . 1 . 1 1 1 Artifact . | . . . . . . . . . . . . . Weapon 47 | 2 7 6 12 1 9 . 3 . 3 . 1 3 Energy Gun 15 | 1 5 1 2 1 4 . . . 1 . . . Energy Cannon 5 | . 1 . 3 . 1 . . . . . . . Ballistic Gun 3 | 1 . . . . 2 . . . . . . . Ballistic Cannon 6 | . . 2 4 . . . . . . . . . Launcher 10 | . 1 2 1 . 1 . 3 . . . . 2 Special Weapon 2 | . . 1 . . . . . . . . . 1 Impact Weapon 1 | . . . 1 . . . . . . . . . Slashing Weapon 5 | . . . 1 . 1 . . . 2 . 1 . Piercing Weapon . | . . . . . . . . . . . . . Special Melee Weapon . | . . . . . . . . . . . . . Unidentified Prototypes 18 | . . 3 3 2 3 1 3 . . 2 1 . Parts Lost 61 | . 2 . 6 1 7 1 12 1 1 . 4 26 Power 11 | . . . 1 . 1 . 3 . . . 2 4 Propulsion 14 | . 1 . 1 1 4 . 1 . . . . 6 Utility 15 | . . . 3 . 2 1 1 1 1 . 1 5 Weapon 21 | . 1 . 1 . . . 7 . . . 1 11 Highest Loss Streak 10 | . 1 . 2 1 3 1 7 1 1 . 3 10 To Critical Strikes 1 | . . . . . . . . . . . . 1 Average Backups 17 | . 9 19 19 19 19 17 15 10 15 19 19 13 Power . | . . . . . . . . . . 1 1 . Propulsion 5 | . 3 10 8 6 7 5 2 1 1 2 1 1 Utility 6 | . 1 3 5 5 6 5 9 8 11 12 12 10 Weapon 3 | . 3 4 5 6 5 4 3 . . 1 1 . Tool/Special . | . . . . . . . . . . . . . Unused Backups 42 | . 1 8 5 3 2 3 . 3 . 1 5 11 Power 1 | . . 1 . . . . . . . . . . Propulsion 21 | . . 5 4 2 2 3 . . . . 3 2 Utility 15 | . 1 1 . . . . . 3 . 1 2 7 Weapon 4 | . . 1 1 1 . . . . . . . 1 Tool/Special 1 | . . . . . . . . . . . . 1 Average Slot Usage (%) 84 | . 99 99 97 99 97 88 58 54 55 55 65 53 Engine 6 | . 14 10 6 5 6 6 4 4 1 . . . Treads 17 | . 27 22 26 29 29 21 2 . 4 . 2 1 Device 10 | . 14 21 9 7 6 7 8 5 5 5 10 5 Storage 8 | . 14 11 9 7 7 7 5 5 5 5 5 4 Processor 5 | . . . 8 7 7 7 5 5 5 5 6 10 Hackware 9 | . . 10 9 14 15 15 10 11 11 11 6 10 Protection 3 | . . . 7 7 6 4 . 4 3 2 . . Energy Gun 5 | . 21 8 . . 7 14 5 . 1 5 8 1 Energy Cannon 1 | . . . 2 4 . . 1 2 1 . . 3 Ballistic Gun 1 | . 4 . . . 1 . . . 2 . 5 2 Ballistic Cannon 6 | . . 13 15 9 2 . . . . . . . Slashing Weapon 1 | . . . . . . . 4 5 5 5 5 4 Peak Build Rating 109 | 7 11 27 36 46 45 59 88 72 82 87 109 105 Average Rating 46 | 5 9 25 30 43 42 50 71 69 75 82 98 76 On Entrance 48 | . 7 11 26 35 44 45 59 69 67 78 87 98 Avg Prop Armor Cover (%) 13 | . . . . 7 . 20 . . . . . . Naked Turns . | . . . . . . . . . . . . . Heaviest Build 104 | 13 52 63 71 71 71 60 77 61 68 67 104 104 Greatest Support 127 | 40 40 49 60 80 88 88 69 96 127 127 127 113 Greatest Overweight (x) 21 | . 1 1 21 1 2 2 1 1 . . 1 17 Average Overweight (x) . | . . 1 1 . . . . . . . . . Largest Inventory Capacity 20 | 8 20 20 20 20 20 20 20 20 20 20 20 20 Average Capacity 19 | 7 18 20 20 20 20 20 20 20 20 20 20 19 Most Carried 20 | 1 13 20 20 20 20 20 19 14 19 20 20 17 Average Carried 17 | . 9 19 19 19 19 17 15 10 15 19 19 13 Final Capacity 20 | 8 20 20 20 20 20 20 20 20 20 20 20 5 Final Carried 20 | 1 12 20 20 20 20 14 14 10 19 19 17 5 Scrap Engine Consumption 184 | . . . . . . 25 35 10 12 2 65 35 Constructs Created 15 | . . . . . . 3 2 2 . . 4 4 Constructs Modified 58 | . . . . . . 6 12 2 6 1 24 7 Class Distribution -------------------- 46% | Mutant 22% | Hacker-Mutant 13% | Hacker-Construct 8% | Scavenger-Mutant 6% | Construct Dominant Class ---------------- Mutant | -10/Materials Mutant | -9/Materials Mutant | -8/Materials Hacker-Mutant | -7/Factory Hacker-Mutant | -7/Storage Hacker-Mutant | -7/Recycling Hacker-Construct | -5/Factory Hacker-Mutant | -5/Upper Caves Hacker-Construct | -5/Upper Caves Hacker-Construct | -5/Zhirov Construct | -4/Proximity Caves Hacker-Mutant | -4/Factory Resources | -11 -10 -9 -8 -7 -7 -7 -5 -5 -5 -5 -4 -4 ----------- Run | Yrd Mat Mat Mat Fac Sto Rec Fac Upp Upp Zhi Pro Fac Matter Collected 6100 | 230 258 819 1752 378 923 108 515 126 148 50 484 309 Remotely . | . . . . . . . . . . . . . Salvage Created 11812 | 195 592 1520 1527 452 1549 832 1945 574 542 403 787 894 Parts 558 | 14 28 113 103 27 61 33 72 14 19 1 26 47 Haulers Intercepted 19 | . 2 5 6 1 4 . 1 . . . . . Recyclers Shooed 16 | 1 1 5 . 1 3 2 3 . . . . . Parts Field Recycled . | . . . . . . . . . . . . . Retrieved Matter . | . . . . . . . . . . . . . Parts Self-Destructed 52 | . . . . . . . . 10 3 . 39 . Prevented 53 | . . . . . . . . . . . 53 . Parts Restored . | . . . . . . . . . . . . . Kills | -11 -10 -9 -8 -7 -7 -7 -5 -5 -5 -5 -4 -4 ------- Run | Yrd Mat Mat Mat Fac Sto Rec Fac Upp Upp Zhi Pro Fac Combat Hostiles Destroyed 206 | . 12 36 44 9 30 6 32 6 6 . 15 10 Melee 25 | . 1 . 4 . . . 5 6 4 . . 5 Guns 65 | . 9 13 . . 8 5 11 . 2 . 15 2 Cannons 61 | . 2 15 31 5 6 1 1 . . . . . AOE 54 | . . 8 9 4 16 . 15 . . . . 2 Classes Destroyed 22 | 2 4 4 2 1 1 3 2 2 1 . . . Worker 16 | . . 5 3 1 3 . 4 . . . . . Builder 11 | . . 5 1 . 2 1 2 . . . . . Tunneler 5 | 4 . . 1 . . . . . . . . . Hauler 19 | . 2 5 6 1 4 . 1 . . . . . Recycler 30 | 1 1 6 . 1 6 8 4 . . . . 3 Minesweeper 2 | . . . . . . . . 1 1 . . . Mechanic 2 | . . . . . 1 . 1 . . . . . Operator 6 | . . 3 1 . . . 1 . . . . 1 Watcher 12 | . 2 3 4 . 2 . 1 . . . . . Swarmer 41 | . 2 12 10 2 3 . 3 5 . . 4 . Grunt 91 | . 10 14 23 4 16 . 17 1 . . 6 . Brawler 7 | . . . 2 . . . 1 . . . 4 . Duelist 3 | . . . 2 . . . . . . . 1 . Protector 2 | . . . . . . 1 1 . . . . . Sentry 33 | . . 10 7 2 10 2 . . 1 . . 1 Specialist 3 | . . . . . . . 3 . . . . . Hunter 4 | . . . . . . . 2 . . . . 2 Programmer 14 | . . . . 1 1 . 5 . . . . 7 Scientist 1 | . . . . . . 1 . . . . . . Scrapper 3 | . . . . . . 3 . . . . . . Decomposer 3 | . . . . . . . . 1 2 . . . Packrat 3 | . . . . . . . . 3 . . . . Samaritan 2 | . . . . . . . . 1 1 . . . Thug 4 | . . . . . . . . . 4 . . . Mutant 2 | . . . . . . . . . 1 . 1 . Best Kill Streak 14 | 4 3 11 5 6 14 8 11 5 3 . 4 4 Combat Bots Only 12 | . 3 4 4 4 12 1 10 5 3 . 4 2 Max Kills in Single Turn 4 | 1 1 4 4 2 3 2 3 1 1 . 2 2 Gunslinging . | . . . . . . . . . . . . . Exploded 3 | . . 2 3 1 3 . 2 . . . . 1 Melee 1 | . 1 . 1 . . . 1 1 1 . . 1 Uniques/NPCs Destroyed . | . . . . . . . . . . . . . Combat | -11 -10 -9 -8 -7 -7 -7 -5 -5 -5 -5 -4 -4 -------- Run | Yrd Mat Mat Mat Fac Sto Rec Fac Upp Upp Zhi Pro Fac Hostile Shots Fired 1811 | . 89 96 166 88 334 60 290 56 56 . 228 348 Missed 570 | . 28 26 44 37 119 21 83 16 20 . 73 103 Hits 1241 | . 61 70 122 51 215 39 207 40 36 . 155 245 Melee 8 | . . . 2 . . . . . . . 5 1 Projectile 1233 | . 61 70 120 51 215 39 207 40 36 . 150 244 AOE 3 | . . . . . . . 1 . . . . 2 Critical Strikes 41 | . 2 4 4 1 . 1 9 . 2 . 8 10 Part Disruptions 1 | . . . . . . . . . . . . 1 Damage Taken 19949 | . 694 1023 1910 518 2096 394 4349 588 717 . 2224 5436 Core 2846 | . 157 158 171 77 202 57 473 163 99 . 132 1157 Absorbed by Shields 665 | . . . . . . . . . . . 665 . Redirected to Shielding 109 | . . . . . . . . 42 67 . . . Ignored by Resistances 26 | . . . 26 . . . . . . . . . Regen/Repaired (Parts) 4044 | . . . . . . 154 853 838 499 13 921 766 Core Remaining (%) 54 | 100 37 60 68 . . 52 . . . . 12 . Volleys Fired 567 | 15 59 85 112 22 78 30 59 . 20 . 52 35 Largest 3 | 2 2 2 2 2 2 2 3 . 1 . 3 3 Hottest 206 | 60 130 165 112 80 150 150 180 . 57 . 206 206 Shots Fired 1121 | 30 118 166 214 43 153 61 109 . 20 . 142 65 Gun 609 | 30 108 76 . . 74 49 61 . 20 . 142 49 Cannon 439 | . 8 78 209 38 57 12 25 . . . . 12 Launcher 69 | . 2 9 5 5 22 . 23 . . . . 3 Special 4 | . . 3 . . . . . . . . . 1 Kinetic 484 | 15 42 78 198 17 46 . 14 . 12 . 20 42 Thermal 525 | 15 74 79 11 21 85 61 61 . 8 . 92 18 Explosive 66 | . 2 9 5 5 22 . 20 . . . . 3 Electromagnetic 45 | . . . . . . . 14 . . . 30 1 Robot Hit Streak 19 | 11 13 17 17 6 19 12 8 . 7 . 10 9 Robot Miss Streak 12 | 3 5 12 8 4 10 5 9 . 2 . 9 4 Penetration Max 1 | . . . 1 . . . . . . . . . Secondary Targets 10 | . 3 1 . . . . 1 . . . 5 . Max Gunslinging Chain 1 | . 1 1 . . . . 1 . . . 1 . Shots Hit Robots 887 | 22 84 130 149 24 120 54 98 19 30 12 83 62 Core Hits 792 | 7 43 185 114 20 133 63 130 9 13 6 43 26 Critical Kills 2 | 1 . . . . . . . . . . . 1 Critical Parts Destroyed 1 | . . . . . . . . . . . 1 . Critical Strikes 34 | 1 1 . 17 1 5 . 5 . . . 1 3 Burn 2 | . 1 . . . 1 . . . . . . . Meltdown 1 | . . . . . . . . . . . . 1 Destroy 2 | 1 . . . . . . . . . . 1 . Blast 21 | . . . 16 1 4 . . . . . . . Sever 8 | . . . 1 . . . 5 . . . . 2 Melee Attacks 152 | . . . 10 . 3 . 42 24 26 12 3 32 Impact 1 | . . . 1 . . . . . . . . . Slashing 151 | . . . 9 . 3 . 42 24 26 12 3 32 Piercing . | . . . . . . . . . . . . . Sneak Attacks 17 | . . . . . . . 3 7 3 . . 4 Combat Hostiles . | . . . . . . . . . . . . . Follow-up Attacks . | . . . . . . . . . . . . . Damage Inflicted 29483 | 204 899 3318 4374 1017 5037 1106 5465 965 1265 1082 2170 2581 Guns 8651 | 204 785 912 . . 1453 871 1246 . 356 . 2170 654 Cannons 7424 | . 104 1111 3362 589 1315 235 485 . . . . 223 Explosions 8074 | . . 1257 680 419 2225 . 2773 . . . . 720 Melee 5138 | . . . 267 . . . 954 965 909 1082 . 961 Ramming 196 | . 10 38 65 9 44 . 7 . . . . 23 Kinetic 7004 | 87 231 1111 3183 233 990 . 215 . 252 . 228 474 Thermal 8619 | 117 658 912 193 356 1778 1106 1276 . 104 . 1560 559 Explosive 7527 | . . 1257 666 419 2225 . 2416 . . . . 544 Electromagnetic 999 | . . . . . . . 597 . . . 382 20 Impact . | . . . . . . . . . . . . . Slashing 5138 | . . . 267 . . . 954 965 909 1082 . 961 Piercing . | . . . . . . . . . . . . . Highest Corruption 21 | . . 2 1 2 5 6 14 14 14 14 14 21 Average Corruption 6 | . . 2 1 1 3 5 5 14 14 14 14 9 Corruption Purged . | . . . . . . . . . . . . . Corruption Blocked . | . . . . . . . . . . . . . Effects 314 | . . 4 23 9 19 39 25 33 28 10 80 44 Message Errors 67 | . . 1 3 3 7 11 6 7 3 3 13 10 Matter Fused 88 | . . 2 7 2 5 6 9 10 9 2 21 15 Heat Flow Errors 37 | . . . 5 1 1 5 4 1 3 1 9 7 Energy Discharges 32 | . . . 2 . 3 4 1 3 6 2 10 1 Parts Rejected 7 | . . . . . . . 1 1 1 . 4 . Parts Fused 5 | . . . 1 . . 1 . 1 . . 2 . Data Loss (minor) 43 | . . . 3 2 3 7 1 3 6 2 8 8 Data Loss (major) 13 | . . 1 1 . . 4 1 3 . . 3 . Misfires 2 | . . . . . . 1 1 . . . . . Alerts 6 | . . . . . . . . 4 . . 2 . Misdirections 6 | . . . . . . . . . . . 3 3 Weapon Failures 8 | . . . 1 1 . . 1 . . . 5 . Overload Shots . | . . . . . . . . . . . . . Overflow Damage 1256 | . . 76 53 . 50 1 155 285 217 244 . 175 Projectiles 114 | . . . 33 . 24 1 44 . . . . 12 Explosions 247 | . . 76 20 . 26 . 79 . . . . 46 Melee 895 | . . . . . . . 32 285 217 244 . 117 Knockbacks 76 | . . 13 58 3 . . 2 . . . . . Impact . | . . . . . . . . . . . . . Kinetic 69 | . . 11 53 3 . . 2 . . . . . Secondary 7 | . . 2 5 . . . . . . . . . Self-Inflicted Damage 957 | . . 158 108 7 30 . 250 . . . . 404 Shots 22 | . . 4 2 1 1 . 9 . . . . 5 Rammed 31 | . 5 11 10 1 4 . . . . . . . Targets Rammed 42 | . 5 12 12 1 6 . 2 . . . . 4 Kicked 6 | . . . . . . . 2 . . . . 4 Crushed 5 | . . 1 2 . 2 . . . . . . . Highest Temperature 476 | 40 460 374 266 443 269 360 394 134 273 107 476 217 Average Temperature 93 | 21 115 81 73 98 77 116 91 69 64 67 163 71 Received Heat Transfer 4663 | . 369 336 999 144 711 163 1095 27 279 . 387 153 Effects 18 | . 5 2 . 1 . . 3 . . . 7 . Shutdowns 2 | . 1 1 . . . . . . . . . . Energy Bleed 4 | . 2 1 . . . . . . . . 1 . Interference 9 | . 1 . . . . . 3 . . . 5 . Matter Decay 1 | . 1 . . . . . . . . . . . Short Circuit 1 | . . . . 1 . . . . . . . . Damage (minor) 1 | . . . . . . . . . . . 1 . Siege Activations . | . . . . . . . . . . . . . Martial Activations . | . . . . . . . . . . . . . Shielding Activations . | . . . . . . . . . . . . . Robots Disrupted . | . . . . . . . . . . . . . Combat Hostiles . | . . . . . . . . . . . . . Robots Corrupted 1 | . . . . . . . 1 . . . . . Combat Hostiles . | . . . . . . . . . . . . . Parts Fried 2 | . . . . . . . 2 . . . . . Impact Corruptions . | . . . . . . . . . . . . . Robots Melted 1 | . . . . . . . . . . . . 1 Combat Hostiles 1 | . . . . . . . . . . . . 1 Parts Melted 15 | . 5 . . 1 2 2 1 . 1 . . 3 Heat Transferred 10535 | 275 1577 1145 309 481 3047 771 1320 . 185 . 1053 372 Parts Sabotaged . | . . . . . . . . . . . . . Parts Stolen . | . . . . . . . . . . . . . Parts Stripped . | . . . . . . . . . . . . . Power Chain Reactions 1 | . . . . . . . 1 . . . . . Alert | -11 -10 -9 -8 -7 -7 -7 -5 -5 -5 -5 -4 -4 ------- Run | Yrd Mat Mat Mat Fac Sto Rec Fac Upp Upp Zhi Pro Fac Maximum Alert Level 3 | . . 2 3 1 3 1 2 . . . . 1 Low Security (%) 51 | 100 100 64 30 . 18 82 6 . . . . 93 Level 1 24 | . . 35 13 100 13 17 52 . . . . 6 Level 2 20 | . . . 46 . 54 . 40 . . . . . Level 3 3 | . . . 9 . 13 . . . . . . . Level 4 . | . . . . . . . . . . . . . Level 5 . | . . . . . . . . . . . . . High Security . | . . . . . . . . . . . . . Max Security . | . . . . . . . . . . . . . Peak Influence 745 | 10 88 421 745 391 740 298 572 . . . . 236 Initial 322 | . 3 . 177 322 111 283 159 . . . . 88 Average 257 | 2 20 157 428 312 501 81 354 . . . . 115 Influence Increases 7622 | 25 339 1287 1505 343 1097 112 1261 135 33 15 705 765 Destroy 0b10 Robot/C 4100 | . 240 720 880 180 600 40 620 120 20 . 480 200 Destroy 0b10 Robot/NC 550 | 25 25 140 80 15 90 50 75 5 10 15 . 20 Destroy Leader 862 | . 38 206 200 52 172 . 104 10 . . 20 60 Allied During Kill 88 | . . . . . . . . . 3 . 85 . Successful Hack 166 | . 22 37 . 23 5 21 34 . . . . 24 Disable Machine 510 | . . 60 165 . 105 . 30 . . . . 150 Destroy Structure 881 | . 14 79 165 43 125 1 188 . . . . 266 Advance Influence 150 | . . . . . . . 150 . . . . . Lose Combat Pursuer 315 | . . 45 15 30 . . 60 . . . 120 45 Influence Decreases 7513 | 20 344 867 1215 808 614 817 724 580 148 15 563 798 Entered New Map 1511 | . 2 . 243 388 134 445 14 208 23 . . 54 Time Decay 4712 | 20 312 567 762 410 410 362 440 362 125 15 423 504 Lost Part 580 | . 20 . 60 10 70 10 120 10 . . 40 240 Lost Ally 110 | . 10 . . . . . . . . . 100 . Purge Threat 600 | . . 300 150 . . . 150 . . . . . Squads Dispatched 39 | . 1 5 6 3 10 . 9 . . . 1 4 Investigation 11 | . 1 2 5 . . . 3 . . . . . Extermination 9 | . . . . 2 1 . 2 . . . . 4 Reinforcement 10 | . . 3 . 1 4 . 2 . . . . . Assault 3 | . . . 1 . 1 . . . . . 1 . Garrison 6 | . . . . . 4 . 2 . . . . . Intercept . | . . . . . . . . . . . . . Searches Triggered . | . . . . . . . . . . . . . Construction Impeded 2 | . . . . . 1 . 1 . . . . . Haulers Reinforced 2 | . . . . . 2 . . . . . . . Active Scanning Responses . | . . . . . . . . . . . . . Cargo Convoy Interrupts 1 | . . . . . . . 1 . . . . . Stealth | -11 -10 -9 -8 -7 -7 -7 -5 -5 -5 -5 -4 -4 --------- Run | Yrd Mat Mat Mat Fac Sto Rec Fac Upp Upp Zhi Pro Fac Distress Signals 20 | . 2 5 6 . 4 . 2 . . . . 1 Communications Jammed . | . . . . . . . . . . . . . Distress Signals . | . . . . . . . . . . . . . Times Spotted 385 | . 21 67 66 14 40 6 56 6 9 . 68 32 Peak Tracking Total 17 | . 4 9 6 4 7 2 11 5 5 . 10 17 Tactical Retreats 17 | . . 3 1 1 . . 4 . 2 . 3 3 Traps | -11 -10 -9 -8 -7 -7 -7 -5 -5 -5 -5 -4 -4 ------- Run | Yrd Mat Mat Mat Fac Sto Rec Fac Upp Upp Zhi Pro Fac Traps Triggered 13 | . 1 2 5 . 1 . 3 . . . . 1 Indirectly . | . . . . . . . . . . . . . Trap Hack Attempts . | . . . . . . . . . . . . . Triggered . | . . . . . . . . . . . . . Disarmed . | . . . . . . . . . . . . . Reprogrammed . | . . . . . . . . . . . . . Reused . | . . . . . . . . . . . . . Traps Extracted . | . . . . . . . . . . . . . Installed . | . . . . . . . . . . . . . Triggered . | . . . . . . . . . . . . . Machines | -11 -10 -9 -8 -7 -7 -7 -5 -5 -5 -5 -4 -4 ---------- Run | Yrd Mat Mat Mat Fac Sto Rec Fac Upp Upp Zhi Pro Fac Machines Disabled 34 | . . 4 11 . 7 . 2 . . . . 10 Max in Single Turn 4 | . . 2 2 . 3 . 1 . . . . 4 Garrison Access 3 | . . . 1 . 1 . 1 . . . . . Machines Repaired . | . . . . . . . . . . . . . Machines Dismantled . | . . . . . . . . . . . . . Machines Sabotaged . | . . . . . . . . . . . . . Overloaded Fab Kills . | . . . . . . . . . . . . . Hacking | -11 -10 -9 -8 -7 -7 -7 -5 -5 -5 -5 -4 -4 --------- Run | Yrd Mat Mat Mat Fac Sto Rec Fac Upp Upp Zhi Pro Fac Machines Accessed 72 | . 8 12 11 4 5 11 11 . 2 4 1 3 Terminals 40 | . 6 9 8 2 3 4 5 . 1 . . 2 Fabricators 3 | . . . . . . . 3 . . . . . Repair Stations 1 | . . 1 . . . . . . . . . . Recycling Units 13 | . 2 . 1 2 1 6 . . . . 1 . Scanalyzers 6 | . . 2 1 . . . 2 . . . . 1 Garrison Access 3 | . . . 1 . 1 . 1 . . . . . Total Hacks 164 | . 15 34 30 7 7 20 26 . 2 17 2 4 Successful 95 | . 9 24 10 2 3 11 15 . 2 17 1 1 Failed 68 | . 6 10 19 5 4 9 11 . . . 1 3 Catastrophic 8 | . . 1 4 . . 2 1 . . . . . Database Lockouts 1 | . . . 1 . . . . . . . . . Manual 33 | . 2 8 15 1 2 1 4 . . . . . Terminals 92 | . 12 23 26 3 4 8 12 . 1 . . 3 Fabricators 7 | . . . . . . . 7 . . . . . Repair Stations 2 | . . 2 . . . . . . . . . . Recycling Units 21 | . 3 . 1 4 1 10 . . . . 2 . Scanalyzers 18 | . . 9 2 . . . 6 . . . . 1 Garrison Access 4 | . . . 1 . 2 . 1 . . . . . Terminal Hacks 63 | . 7 14 7 2 2 5 6 . 2 17 . 1 Record 6 | . . . . . . . . . 1 5 . . Part Schematic 9 | . . . . . . 3 1 . . 4 . 1 Robot Analysis 4 | . . . . . . . . . . 4 . . Prototype ID Bank 7 | . . 2 1 . . . . . . 4 . . Open Door 3 | . . . . . 2 . . . 1 . . . Level Access Points 1 | . . 1 . . . . . . . . . . Branch Access Points 4 | . . 1 1 1 . . 1 . . . . . Terminal Index 1 | . . 1 . . . . . . . . . . Alert Level 5 | . 1 1 2 . . . 1 . . . . . Unreport Threat 4 | . . 2 1 . . . 1 . . . . . Dispatch Records 4 | . 2 2 . . . . . . . . . . Patrol Status 1 | . 1 . . . . . . . . . . . Recall Investigation 2 | . . . 1 . . . 1 . . . . . Recall Reinforcements 1 | . . 1 . . . . . . . . . . Hauler Manifests 2 | . . 2 . . . . . . . . . . Registered Components 3 | . 1 1 . 1 . . . . . . . . Zone Layout 4 | . 2 . 1 . . . 1 . . . . . Release Object 2 | . . . . . . 2 . . . . . . Fabricator Hacks 2 | . . . . . . . 2 . . . . . Load Schematic 2 | . . . . . . . 2 . . . . . Repair Station Hacks 1 | . . 1 . . . . . . . . . . Scan Component 1 | . . 1 . . . . . . . . . . Recycling Unit Hacks 9 | . 1 . 1 . . 6 . . . . 1 . Retrieve Components 9 | . 1 . 1 . . 6 . . . . 1 . Scanalyzer 16 | . . 9 1 . . . 6 . . . . . Insert Component 6 | . . 3 . . . . 3 . . . . . Analyze 6 | . . 3 . . . . 3 . . . . . Retrieve Study 4 | . . 3 1 . . . . . . . . . Garrison Access Hacks 3 | . . . 1 . 1 . 1 . . . . . Seal Access 3 | . . . 1 . 1 . 1 . . . . . Unauthorized Hacks 1 | . 1 . . . . . . . . . . . Terminals 1 | . 1 . . . . . . . . . . . Assimilate 1 | . 1 . . . . . . . . . . . Fabricators . | . . . . . . . . . . . . . Repair Stations . | . . . . . . . . . . . . . Recycling Units . | . . . . . . . . . . . . . Scanalyzers . | . . . . . . . . . . . . . Garrison Access . | . . . . . . . . . . . . . Data Cores Recovered 2 | . . . 1 . . . 1 . . . . . Used . | . . . . . . . . . . . . . Hacking Detections 47 | . 4 8 9 2 4 6 10 . . . 1 3 Full Trace Events 11 | . . 1 4 . . 3 3 . . . . . Feedback Events 3 | . . . . . . 2 1 . . . . . Corruption 2 | . . . . . . 1 1 . . . . . Hackware Fried 1 | . . . . . . 1 . . . . . . Feedback Blocked . | . . . . . . . . . . . . . Robot Schematics Acquired . | . . . . . . . . . . . . . Robots Built . | . . . . . . . . . . . . . Authchips . | . . . . . . . . . . . . . Time . | . . . . . . . . . . . . . Total Robot Build Rating . | . . . . . . . . . . . . . Part Schematics Acquired 14 | . . 3 . . . 3 3 . . 4 . 1 Parts Built . | . . . . . . . . . . . . . Authchips . | . . . . . . . . . . . . . Time . | . . . . . . . . . . . . . Total Part Build Rating . | . . . . . . . . . . . . . Part Studies Acquired 4 | . . 3 1 . . . . . . . . . Parts Repaired . | . . . . . . . . . . . . . Time . | . . . . . . . . . . . . . Parts Recycled . | . . . . . . . . . . . . . Recycled Matter . | . . . . . . . . . . . . . Retrieved Matter . | . . . . . . . . . . . . . Retrieved Components 29 | . 10 . 2 . . 17 . . . . . . Parts Scanalyzed 5 | . . 3 . . . . 2 . . . . . Part Schematics Acquired 5 | . . 3 . . . . 2 . . . . . Parts Damaged . | . . . . . . . . . . . . . Bothacking | -11 -10 -9 -8 -7 -7 -7 -5 -5 -5 -5 -4 -4 ------------ Run | Yrd Mat Mat Mat Fac Sto Rec Fac Upp Upp Zhi Pro Fac Used RIF Installer . | . . . . . . . . . . . . . Robots Hacked . | . . . . . . . . . . . . . Non-combat . | . . . . . . . . . . . . . Combat . | . . . . . . . . . . . . . Robot Hacks Applied . | . . . . . . . . . . . . . Relay Couplers Released 5 | . . . . 3 . . 2 . . . . . Machine Destruction 2 | . . . . . . . 2 . . . . . Programmers 3 | . . . . 3 . . . . . . . . Fabnet Peak Effective % . | . . . . . . . . . . . . . Robots Rewired 8 | . . . . . . . . . 2 . 6 . Allies Hacked . | . . . . . . . . . . . . . Hacks Repelled . | . . . . . . . . . . . . . Allies | -11 -10 -9 -8 -7 -7 -7 -5 -5 -5 -5 -4 -4 -------- Run | Yrd Mat Mat Mat Fac Sto Rec Fac Upp Upp Zhi Pro Fac Total Allies 10 | . 1 . . . . . . . 2 . 7 . Largest Group 7 | . 1 . . . . . . . 2 1 7 . Highest-Rated Group 219 | . 10 . . . . . . . 62 31 219 . Highest-Rated Ally 56 | . 10 . . . . . . . 31 31 56 . Total Orders . | . . . . . . . . . . . . . Ally Attacks 103 | . . . . . . . . . 21 . 82 . Total Damage 1853 | . . . . . . . . . 315 . 1538 . Kills 13 | . . . . . . . . . 3 . 10 . Allies Corrupted . | . . . . . . . . . . . . . Allies Melted . | . . . . . . . . . . . . . Intel | -11 -10 -9 -8 -7 -7 -7 -5 -5 -5 -5 -4 -4 ------- Run | Yrd Mat Mat Mat Fac Sto Rec Fac Upp Upp Zhi Pro Fac Active Infowar (turns) 19171 | 8 1569 3293 4636 984 990 1449 1042 835 721 221 1793 1630 Optics 12180 | . . . 2515 984 990 1449 1042 835 721 221 1793 1630 Sensors 1450 | . . . 1400 . . . . . . . . 50 Seismic 5591 | 8 1569 3293 721 . . . . . . . . . Decoding 639 | . . . . . . . . . . . 527 112 Robot Analysis Total 4 | . . . . . . . . . . 4 . . Derelict Logs Recovered 5 | . . . . . . . . 1 3 . 1 . Drone Launches . | . . . . . . . . . . . . . Drone Recoveries . | . . . . . . . . . . . . . Decoded 0b10 Intel 2 | . . . . . . . . . . . . 2 Traps 2 | . . . . . . . . . . . . 2 Exploration | -11 -10 -9 -8 -7 -7 -7 -5 -5 -5 -5 -4 -4 ------------- Run | Yrd Mat Mat Mat Fac Sto Rec Fac Upp Upp Zhi Pro Fac Turns Passed 19583 | 114 1569 3392 4786 984 990 1449 1087 835 721 221 1805 1630 Spaces Moved 8817 | 39 596 1159 1752 514 411 719 718 384 513 178 1070 764 Core 57 | 1 . . 1 . . . . . . . . 55 Treads 6821 | 38 596 1159 1751 514 411 719 380 4 476 . 544 229 Legs 1121 | . . . . . . . 35 . 37 178 399 472 Wheels . | . . . . . . . . . . . . . Hover 161 | . . . . . . . 153 . . . . 8 Flight 657 | . . . . . . . 150 380 . . 127 . Fastest Speed 50 | 50 160 240 163 165 145 54 54 76 96 96 56 50 Average Speed 170 | 157 225 249 242 169 158 81 102 144 106 96 120 142 Slowest Speed 1100 | 160 240 250 1100 246 320 305 213 198 107 96 219 900 Overloaded Moves . | . . . . . . . . . . . . . Propulsion Burnouts . | . . . . . . . . . . . . . Robots Hopped . | . . . . . . . . . . . . . Potential Cave-ins . | . . . . . . . . . . . . . Cave-ins Triggered . | . . . . . . . . . . . . . Teleports 1 | . . . . . . . . . . . 1 . Exploration Rate (%) 60 | 5 93 92 88 21 79 92 23 69 65 63 85 16 Regions Visited 12 Branch Regions 6 Pre-discovered Areas 5 | . . . . . . . . 1 1 3 . . Known Exits Taken 3 | . . 1 . 1 . . 1 . . . . . Unknown Exits Taken 9 | 1 1 . 1 . 1 1 . 1 1 1 1 . Scrap Searched 11 | . . . . . . . . 4 4 . 3 . Spaces Dug 18 | . . . . 2 . . 9 . 2 . 3 2 Terrain Destroyed 788 | . 12 83 168 51 155 1 128 . 2 . 17 171 Melee 16 | . . . . . . . 9 . 2 . 3 2 Projectile 110 | . . . 62 5 17 1 6 . . . 14 5 AOE 662 | . 12 83 106 46 138 . 113 . . . . 164 Terrain Rammed . | . . . . . . . . . . . . . Walls Destroyed . | . . . . . . . . . . . . . Machines Disabled . | . . . . . . . . . . . . . Actions | -11 -10 -9 -8 -7 -7 -7 -5 -5 -5 -5 -4 -4 --------- Run | Yrd Mat Mat Mat Fac Sto Rec Fac Upp Upp Zhi Pro Fac Total 11998 | 61 704 1474 2037 583 582 1533 888 626 630 209 1472 1199 Wait 1919 | . 17 142 47 11 23 749 43 211 50 12 276 338 Move 8805 | 38 595 1158 1751 513 410 718 717 383 512 177 1069 764 Hop . | . . . . . . . . . . . . . Pick Up 115 | 1 13 26 17 8 10 6 7 2 8 2 8 7 Fast Attach 43 | 7 . 3 13 1 3 1 1 . 5 2 6 1 Attach 39 | . 2 1 5 3 4 1 11 1 . . 3 8 Detach 17 | . . 1 . . . 7 4 . 4 . . 1 Swap 131 | . 9 22 42 14 29 1 2 . . 2 8 2 Drop 128 | . 4 23 28 10 16 20 . 5 2 2 11 7 Fire 567 | 15 59 85 112 22 78 30 59 . 20 . 52 35 Melee 152 | . . . 10 . 3 . 42 24 26 12 3 32 Ram . | . . . . . . . . . . . . . Kick 6 | . . . . . . . 2 . . . . 4 Crush 36 | . 5 12 12 1 6 . . . . . . . Escape Stasis . | . . . . . . . . . . . . . Rewire 40 | . . 1 . . . . . . 3 . 36 . Trap . | . . . . . . . . . . . . . Miscellaneous . | . . . . . . . . . . . . . Route ------- -11/Scrapyard -10/Materials (discovered 4 exits: *Mat x2 / [*Min x2]) -9/Materials (discovered 5 exits: *Mat x3 / *Min x2) -8/Materials (discovered 2 exits: *Fac x2) -7/Factory (discovered 5 exits: [*Fac x2] / *Sto / *Low x2) -7/Storage (discovered 2 exits: [*Fac] / *Rec) -7/Recycling -5/Factory (discovered 2 exits: *Upp x2) -5/Upper Caves -5/Upper Caves -5/Zhirov -4/Proximity Caves -4/Factory (discovered 1 exit: [*Arm]) History --------- Turn | Location | Event 19 | -11/Scrapyard | Discovered new exit (range 16) 115 | -11/Scrapyard | Entered Materials 321 | -10/Materials | Build established: Mutant 595 | -10/Materials | Discovered new exit (range 12) 615 | -10/Materials | Core integrity fell below 50% 928 | -10/Materials | Discovered new exit (range 16) 1271 | -10/Materials | Discovered new exit (range 15) 1569 | -10/Materials | Discovered new exit (range 11) 1684 | -10/Materials | Entered another Materials area 1684 | -9/Materials | Evolved 2 slots: Utility x2 1852 | -9/Materials | Discovered new exit (range 15) 1998 | -9/Materials | Identified exit to Mines 2147 | -9/Materials | Identified exit to Materials 5076 | -9/Materials | Entered another Materials area 5076 | -8/Materials | Evolved 2 slots: Propulsion x1, Utility x1 5382 | -8/Materials | Central database locked down 5432 | -8/Materials | Build established: Scavenger-Mutant 6100 | -8/Materials | Build established: Mutant 7311 | -8/Materials | Discovered new exit (range 16) 8113 | -8/Materials | Discovered new exit (range 12) 8276 | -8/Materials | First assault squad dispatched 9862 | -8/Materials | Entered Factory 9862 | -7/Factory | Evolved 2 slots: Propulsion x1, Utility x1 10110 | -7/Factory | Discovered new exit (range 5) 10172 | -7/Factory | Identified exit to Storage 10172 | -7/Factory | Identified exit to Lower Caves 10293 | -7/Factory | Discovered new exit (range 20) 10317 | -7/Factory | Build established: Scavenger-Mutant 10656 | -7/Factory | Build established: Hacker-Mutant 10790 | -7/Factory | Discovered new exit (range 7) 10846 | -7/Factory | Entered Storage 11131 | -7/Storage | Discovered new exit (range 19) 11190 | -7/Storage | Destroyed 12 combat bots 11348 | -7/Storage | Lost 3 parts (3n) 11352 | -7/Storage | Garrison activated, responded to threat 11646 | -7/Storage | First assault squad dispatched 11825 | -7/Storage | Used back door to open Recycling access 11825 | -7/Storage | Discovered new exit (range 5) 11836 | -7/Storage | Entered Recycling 12342 | -7/Recycling | Discovered new exit (range 8) 12419 | -7/Recycling | Hacking Suite fried by hacking feedback 12438 | -7/Recycling | Scanned before Scraplab entrance 12485 | -7/Recycling | Angered Scraplab inhabitants 12684 | -7/Recycling | Found Prototype Device 12684 | -7/Recycling | Identified Scrap Engine 13285 | -7/Recycling | Entered Factory 13285 | -5/Factory | Evolved 4 slots: Power x1, Utility x1, Weapon x2 13554 | -5/Factory | Destroyed 7 combat bots 13577 | -5/Factory | Identified exit to Upper Caves 13890 | -5/Factory | Found Prototype Launcher 13898 | -5/Factory | Build established: Hacker-Construct 14021 | -5/Factory | Garrison activated, responded to threat 14054 | -5/Factory | Identified Mni. Smartbomb Launcher 14234 | -5/Factory | Cargo convoy interrupted 14239 | -5/Factory | System corruption reached 10% 14245 | -5/Factory | Garrison activated, responded to threat 14308 | -5/Factory | Lost 7 parts (2p1n1u3w) 14311 | -5/Factory | Destroyed 10 combat bots 14372 | -5/Factory | Entered Upper Caves 14375 | -5/Upper Caves | Core integrity fell below 50% 14609 | -5/Upper Caves | Build established: Hacker-Mutant 14804 | -5/Upper Caves | Learned location of Armory (-4) 15100 | -5/Upper Caves | Build established: Hacker-Construct 15182 | -5/Upper Caves | Discovered new exit (range 16) 15207 | -5/Upper Caves | Entered another Upper Caves area 15371 | -5/Upper Caves | Learned location of Warlord (-4) 15426 | -5/Upper Caves | Learned Factory stockpile data 15572 | -5/Upper Caves | Learned Factory garrison access intel 15718 | -5/Upper Caves | Attacked by a faux Warlord 15807 | -5/Upper Caves | Discovered new exit (range 5) 15810 | -5/Upper Caves | Attracted the attention of an 0b10 checkpoint 15928 | -5/Upper Caves | Entered Zhirov 15928 | -5/Zhirov | Accompanied by 1 ally 15928 | -5/Zhirov | Discovered new exit (range 3) 15946 | -5/Zhirov | Met Zhirov 15963 | -5/Zhirov | Learned location of Quarantine (-3) 15963 | -5/Zhirov | Learned location of Testing (-2) 15963 | -5/Zhirov | Learned location of Command (-1) 15980 | -5/Zhirov | Zhirov requested help retrieving the SGEMP Prototype 15997 | -5/Zhirov | Found Alien Artifact 16008 | -5/Zhirov | Found Alien Artifact 16008 | -5/Zhirov | Identified Integrated Dissipator 16008 | -5/Zhirov | Installed Integrated Dissipator, increased core heat dissipation (+20) 16149 | -5/Zhirov | Entered Proximity Caves 16149 | -4/Proximity Caves | Accompanied by 1 ally 16151 | -4/Proximity Caves | Greeted by an Infiltrator in a former 0b10 base 16156 | -4/Proximity Caves | Watched by a mysterious "MATRIX" hacker 16313 | -4/Proximity Caves | Former 0b10 base attacked by MAIN.C 16515 | -4/Proximity Caves | Learned Research security intel 16609 | -4/Proximity Caves | Lost 14 allies 16649 | -4/Proximity Caves | 0b10 base defense nominally successful 16770 | -4/Proximity Caves | Lost 3 parts (2p1u) 16786 | -4/Proximity Caves | Core integrity fell below 20% 16787 | -4/Proximity Caves | Lost 12 allies 16999 | -4/Proximity Caves | Build established: Construct 17636 | -4/Proximity Caves | Attracted the attention of an 0b10 outpost 17829 | -4/Proximity Caves | Spotted B-86 Titan 17888 | -4/Proximity Caves | Identified Transdimensional Reconstructor 17888 | -4/Proximity Caves | Warped through subspace 17947 | -4/Proximity Caves | Discovered new exit (range 6) 17954 | -4/Proximity Caves | Entered Factory 17954 | -4/Factory | Evolved 2 slots: Propulsion x1, Utility x1 17956 | -4/Factory | Loaded intel: 3 garrison access locations 18111 | -4/Factory | Spotted B-86 Titan 18312 | -4/Factory | Lost 3 parts (1p2w) 18566 | -4/Factory | Attached CPS modules to H-77 Assassin 18604 | -4/Factory | Lost 6 parts (1p1n4w) 18694 | -4/Factory | Lost 3 parts (1n1u1w) 18852 | -4/Factory | Build established: Hacker-Mutant 19515 | -4/Factory | System corruption reached 10% 19548 | -4/Factory | Core integrity fell below 50% 19570 | -4/Factory | Core integrity fell below 20% 19582 | -4/Factory | Discovered new exit (range 11) 19584 | -4/Factory | Destroyed by Y-72 Warden with Railgun Last Messages --------------- 19564_ The unstable cave ceiling collapses. 19564_ U-05 Engineer lays Concrete. 19566_ U-05 Engineer builds a Wall. 19566_ U-05 Engineer lays Concrete. 19567_ P-70 Sage resets U-05 Engineer, system corruption cleaned. 19567_ Penetrated by Slug. 19567_ U-05 Engineer lays Concrete. 19577_ K-01 Serf destroyed. 19578_ K-01 Serf collects debris. 19579_ Triggered Ambush Trap. 19579_ L-61 Swordsman emerges from a hatch in the floor. 19579_ G-67 Veteran emerges from a hatch in the floor. 19579_ S-27 Virus emerges from a hatch in the floor. 19579_ Scrap Engine destroyed. 19582_ EXIT=FOUND 19584_ K-01 Serf destroyed. Map ----- +----------------------------------------------------+ | ?????????????????????????????????????????????????? | | ?????????????????????????????????????????????????? | | ?????????????????????????????????????????????????? | | ?????????????????????????????????????????????????? | | ?????????????????????????????????????????????????? | | ?????????????????????????????????????????????????? | | ?????????????????????????????????????????????????? | | ?????????????????????????????????????????????????? | | ?????????????????????????????????????????????????? | | ?????????????????????????????????????????????????? | | ?????????????????????????????????????????????????? | | ?????????????????????????????????????????????????? | | ?????????????????????????????????????????????????? | | ?????????????????????????????????????????????????? | | ??????????????????##??????????#####??????????????? | | ??????????????????"""?????????# = ?????????????? | | ???????????????????""?????????# """?#????????? | | ?????????????? ????? g????????? = G" #????????? | | ???????????????g#####/#######?? """ #????????? | | ???????????????? """""#?? """ ?????????? | | ????????????????? "[["#?? """ ??????????? | | ?????????????????? [["#?? """ ????????????? | | ??????????????????? """ [["#?? ??????????????? | | ???????????????## ???#" """####"###########?????? | | ????????#" "# #" "# #?????? | | ????????+ @ + #?????? | | ????????+ Y < Y % + #?????? | | ????????+ * + #?????" | | ????????#" "# #" "# #???# " | | ????????#""????## Y?#" """########## #???# " | | !??????????????"" ? """ [["#?# # = #???# " | | ????????????? ? [["#?# # % #???# | | ????????????" ?? "[["#?# + #???# | | ????????????"??? """""#????????# #???# | | ???????????#???######/#######????????# #???# | | ???????????????????? g???????????????# #???# | | ???????????????????"" ???????????????# #?????? | | ??????????????????"""????????????????# ####### | | ??????????????????###????????????????# | | ?????????????????????????????????????# | | ?????????????????????????????????????# | | ?????????????????????????????????????# | | ?????????????????????????????????????# | | ?????????????????????????????????????# | | ?????????????????????????????????????# | | ?????????????????????????????????????# | | ?????????????????????????????????????+ | | ?????????????????????????????????????# | | ?????????????????????????????????????# | | ?????????????????????????????????????# | +----------------------------------------------------+ Best States ------------- Heat Dissipation 63 Coolant Potential 80 Energy Generation 40 Energy Capacity 720 Matter Stores 300 Matter Capacity 300 Sight Range 20 Robot Scan Range 16 Terrain Scan Density 10 Power Amplification 30 Additional Mass Support 9 Armor Coverage 225 Resistance: TH 10 Power Shielding 90 Utility Shielding 66 Evasion (%) 58 Recoil Reduction 4 Matter Filtering 50 Particle Charging 20 Kinecelleration 30 Offensive Hacking 22 Defensive Hacking 14 Item Schematics ----------------- Arm. Treads | -9/Materials | Scanalyzed Hacking Suite | -9/Materials | Scanalyzed Plasma Cutter | -9/Materials | Scanalyzed Magnetic Acceleration Cannon | -7/Recycling | Hacked Hyp. Gauss Cannon | -7/Recycling | Hacked Field Propulsion Drive | -7/Recycling | Hacked Linear Accelerator | -5/Factory | Hacked Adv. Treads | -5/Factory | Scanalyzed Hvy. Rocket Launcher | -5/Factory | Scanalyzed Assault Drone Bay | -5/Zhirov | Free Exp. Optical Array | -5/Zhirov | Free Exp. Heat Sink | -5/Zhirov | Free Imp. Arc Thrower | -5/Zhirov | Free Enh. Nova Cannon | -4/Factory | Hacked Robot Schematics ------------------ None Fabricated ------------ Nothing Repaired ---------- Nothing Studied --------- VTOL Module | -9/Materials | Hacked Rocket Launcher | -9/Materials | Hacked Spread Laser | -9/Materials | Hacked Flak Cannon | -8/Materials | Hacked Alien Tech Used ----------------- Integrated Dissipator Transdimensional Reconstructor Achievements -------------- None Challenges ------------ None Game ------ Seed GreatPrecisionFalx Manual? 0 Play Time 01:53:32 Cumulative 215.3 hours Start 2026.09.02 @ 12:06:50 End 2026.09.02 @ 13:58:21 Sessions 1 Manual Loads 0 Difficulty Rogue Special Mode None Game No. 326 Rogue 326 Adventurer 0 Explorer 0 Win Type - Total 1 Types 1/0/0/0/0/0/0/0/0/0 Lore% 68 Gallery% 61 Achievement% 47 Wizard Run 0 Options --------- Layout 1 ASCII 0 Keyboard 1 Movement Arrows Keybinds 0 Fullscreen 1 Font 24/Smallcaps Map View 50x35 Zoom Use 0% Tactical HUD 1 Map Filters NONE Filters NONE Steam 1 RUN: 3f8373e8-12ed-451d-87dc-e49757f04a78